Cogmind - Beta 12 @@@ ROGUE MODE // 2023.10.22 @ 21:45:32 Player: Figgis Result: Self-destructed Performance ------------- Evolutions (4) 2000 Regions Visited (7) 1400 Robots Destroyed (50) 250 Value Destroyed (1968) 1968 Prototype IDs (26) 520 Alien Tech Used (0) 0 Bonus (140) 140 TOTAL SCORE: 6278 Bonus ------- Follower Combat Kills 156 Friendly Fire -16 Cogmind --------- Core Integrity 604/850 Matter 293/300 Energy 290/290 System Corruption 4% Temperature Cool (0) Movement Walking (123) Location -6/Factory Parts ------- > --- POWER (2) -------- Nuclear Core Micro Nuclear Core > --- PROPULSION (5) --- Carbon-fiber Leg Carbon-fiber Leg Titanium Leg > --- UTILITY (6) ------ Large Storage Unit Advanced Sensor Array Improved Signal Interpreter Core Analyzer Microactuators > --- WEAPON (2) ------- Powered Hammer Longsword +1 > --- INVENTORY (15) --- Xenon Bombardment Thruster Xenon Bombardment Thruster Matter Compressor (0) Advanced Weight Redist. System Advanced Sensor Array Improved Reaction Control System Improved Light Armor Plating Focal Shield Beamcaster Plasma Cannon Gauss Rifle Advanced Assault Cannon Gauss Cannon Peak State ------------ > --- POWER ------------ Nuclear Core Micro Nuclear Core > --- PROPULSION ------- Carbon-fiber Leg Titanium Leg Makeshift Leg Makeshift Leg Makeshift Leg > --- UTILITY ---------- Large Storage Unit Advanced Sensor Array Improved Signal Interpreter Core Analyzer Microactuators Improved Shield Generator > --- WEAPON ----------- Powered Hammer Longsword +1 > --- INVENTORY -------- Carbon-fiber Leg Carbon-fiber Leg Xenon Bombardment Thruster Xenon Bombardment Thruster Matter Compressor Advanced Weight Redist. System Advanced Sensor Array Improved Light Armor Plating Focal Shield Beamcaster Plasma Cannon Plasma Cannon Gauss Rifle Advanced Assault Cannon Gauss Cannon [Rating: 64] Favorites ----------- Power Ion Engine Engine Ion Engine Power Core Nuclear Core Propulsion Makeshift Leg Treads Light Treads Leg Makeshift Leg Hover Unit Gravmag System Utility Improved Signal Interpreter Device Microactuators Storage Large Storage Unit Processor Improved Signal Interpreter Hackware Makeshift Hacking Suite Weapon Improved Assault Rifle Energy Gun Small Laser Energy Cannon Plasma Cannon Ballistic Gun Improved Assault Rifle Impact Weapon Powered Hammer Slashing Weapon Longsword +1 Build | -11 -10 -10 -10 -9 -8 -7 -6 ------- Run | Jun Mat Min Exi Min Mat Fac Fac Slots Evolved 8 | . . . . . 4 2 2 Power 1 | . . . . . . . 1 Propulsion 3 | . . . . . 2 1 . Utility 4 | . . . . . 2 1 1 Weapon . | . . . . . . . . Parts Attached 70 | 4 8 1 4 . 20 27 6 Power 8 | 1 2 . . . 2 2 1 Engine 6 | 1 2 . . . 2 1 . Core 2 | . . . . . . 1 1 Reactor . | . . . . . . . . Propulsion 30 | 2 . . 2 . 8 15 3 Treads 2 | 2 . . . . . . . Leg 24 | . . . 2 . 4 15 3 Wheel . | . . . . . . . . Hover 4 | . . . . . 4 . . Flight . | . . . . . . . . Utility 19 | . 1 1 1 . 7 7 2 Device 11 | . . 1 . . 4 4 2 Storage 4 | . 1 . 1 . 1 1 . Processor 3 | . . . . . 1 2 . Hackware 1 | . . . . . 1 . . Protection . | . . . . . . . . Artifact . | . . . . . . . . Weapon 13 | 1 5 . 1 . 3 3 . Energy Gun 2 | 1 1 . . . . . . Energy Cannon 2 | . . . . . 2 . . Ballistic Gun 7 | . 4 . 1 . 1 1 . Ballistic Cannon . | . . . . . . . . Launcher . | . . . . . . . . Special Weapon . | . . . . . . . . Impact Weapon 1 | . . . . . . 1 . Slashing Weapon 1 | . . . . . . 1 . Piercing Weapon . | . . . . . . . . Special Melee Weapon . | . . . . . . . . Unidentified Prototypes 3 | . 1 . . . 1 1 . Parts Lost 20 | . 2 . . . 6 7 5 Power 3 | . 1 . . . 1 1 . Propulsion 11 | . . . . . 3 4 4 Utility 5 | . . . . . 2 2 1 Weapon 1 | . 1 . . . . . . Highest Loss Streak 6 | . 1 . . . 6 2 3 To Critical Strikes . | . . . . . . . . Average Slot Usage (%) 94 | . 78 88 100 100 94 96 98 Engine 8 | . 11 14 14 14 8 5 . Core 1 | . . . . . . 1 13 Treads 8 | . 28 28 11 . . . . Leg 21 | . . . 16 28 22 33 32 Hover 2 | . . . . . 11 3 . Device 11 | . . 3 14 14 13 14 19 Storage 9 | . 12 14 14 14 9 7 6 Processor 5 | . . . . . 3 10 13 Hackware 2 | . . . . . 8 2 . Energy Cannon 1 | . . . . . 6 1 . Ballistic Gun 12 | . 21 28 28 28 11 2 . Impact Weapon 2 | . . . . . . 4 6 Slashing Weapon 3 | . . . . . . 6 6 Naked Turns . | . . . . . . . . Heaviest Build 48 | 4 16 17 22 22 48 48 46 Greatest Support 95 | 3 40 40 40 30 60 95 92 Greatest Overweight (x) 5 | 1 . . 5 . 1 1 . Average Overweight (x) . | . . . . . . . . Largest Inventory Capacity 15 | 5 8 8 10 10 15 15 15 Average Capacity 11 | 5 7 8 9 10 10 15 15 Most Carried 15 | 5 7 8 10 10 10 15 15 Average Carried 10 | 3 3 7 8 10 9 13 14 Final Capacity 15 | 5 8 8 10 10 15 15 15 Final Carried 15 | 5 6 8 10 10 10 15 13 Class Distribution -------------------- 63% | Mutant 21% | Derelict-Mutant 15% | Scavenger-Mutant Dominant Class ---------------- Mutant | -10/Materials Mutant | -10/Mines Scavenger-Mutant | -10/Exiles Scavenger-Mutant | -9/Mines Scavenger-Mutant | -8/Materials Derelict-Mutant | -7/Factory Mutant | -6/Factory Resources | -11 -10 -10 -10 -9 -8 -7 -6 ----------- Run | Jun Mat Min Exi Min Mat Fac Fac Matter Collected 1494 | 240 158 134 178 27 278 390 89 Remotely . | . . . . . . . . Salvage Created 2407 | . 256 267 319 17 497 1051 . Parts 113 | . 15 13 10 3 32 40 . Haulers Intercepted 1 | . . . . . . 1 . Recyclers Shooed . | . . . . . . . . Parts Field Recycled . | . . . . . . . . Retrieved Matter . | . . . . . . . . Parts Self-Destructed . | . . . . . . . . Prevented . | . . . . . . . . Kills | -11 -10 -10 -10 -9 -8 -7 -6 ------- Run | Jun Mat Min Exi Min Mat Fac Fac Combat Hostiles Destroyed 39 | . 5 6 3 1 7 17 . Melee 17 | . . . . . . 17 . Guns 22 | . 5 6 3 1 7 . . Classes Destroyed 9 | . 2 . 1 1 1 4 . Builder 1 | . . . . . 1 . . Hauler 1 | . . . . . . 1 . Recycler 2 | . . . . . . 2 . Watcher 7 | . 2 . . . 4 1 . Swarmer 1 | . . . . 1 . . . Grunt 30 | . 5 6 2 . 7 10 . Sentry 2 | . . . . . . 2 . Hunter 3 | . . . 1 . . 2 . Programmer 3 | . . . . . . 3 . Best Kill Streak 3 | . 2 2 1 1 3 3 . Combat Bots Only 2 | . 2 2 1 1 2 2 . Max Kills in Single Turn 2 | . 2 1 1 1 1 1 . Gunslinging 1 | . 1 . . . . . . Exploded . | . . . . . . . . Melee 1 | . . . . . . 1 . Uniques/NPCs Destroyed . | . . . . . . . . Combat | -11 -10 -10 -10 -9 -8 -7 -6 -------- Run | Jun Mat Min Exi Min Mat Fac Fac Damage Taken 3639 | . 465 236 . 74 814 1168 882 Core 750 | . 115 40 . . 65 284 246 Absorbed by Shields 34 | . . . . . . . 34 Regen/Repaired (Parts) 99 | . . . . . . 99 . Core Remaining (%) 71 | 100 . . . 38 88 59 . Volleys Fired 105 | . 24 14 27 1 37 2 . Largest 2 | . 2 2 2 2 2 2 . Hottest 160 | . 60 46 46 46 46 160 . Shots Fired 211 | . 48 28 54 2 74 5 . Gun 207 | . 48 28 54 2 74 1 . Cannon 4 | . . . . . . 4 . Launcher . | . . . . . . . . Special . | . . . . . . . . Kinetic 200 | . 41 28 54 2 74 1 . Thermal 11 | . 7 . . . . 4 . Explosive . | . . . . . . . . Electromagnetic . | . . . . . . . . Robot Hit Streak 26 | . 12 12 26 1 16 5 . Robot Miss Streak 5 | . 2 2 1 1 5 1 . Penetration Max . | . . . . . . . . Secondary Targets 3 | . 1 2 . . . . . Max Gunslinging Chain 1 | . 1 1 . . . . . Shots Hit Robots 221 | . 34 24 44 1 51 66 1 Core Hits 81 | . 15 9 15 1 24 17 . Critical Kills . | . . . . . . . . Critical Parts Destroyed 3 | . . . 2 . . 1 . Critical Strikes 9 | . . . 2 . . 7 . Destroy 2 | . . . 2 . . . . Smash 1 | . . . . . . 1 . Sever 6 | . . . . . . 6 . Melee Attacks 75 | . . . . . . 68 7 Impact 8 | . . . . . . 7 1 Slashing 67 | . . . . . . 61 6 Piercing . | . . . . . . . . Sneak Attacks 6 | . . . . . . 6 . Combat Hostiles . | . . . . . . . . Follow-up Attacks 6 | . . . . . . 6 . Damage Inflicted 5511 | . 481 369 526 19 852 3237 27 Guns 2247 | . 481 369 526 19 852 . . Cannons 106 | . . . . . . 106 . Explosions . | . . . . . . . . Melee 3158 | . . . . . . 3131 27 Ramming . | . . . . . . . . Kinetic 2166 | . 400 369 526 19 852 . . Thermal 187 | . 81 . . . . 106 . Explosive . | . . . . . . . . Electromagnetic . | . . . . . . . . Impact 271 | . . . . . . 271 . Slashing 2887 | . . . . . . 2860 27 Piercing . | . . . . . . . . Highest Corruption 5 | . . . . . . 5 4 Average Corruption 4 | . . . . . . 4 2 Corruption Purged . | . . . . . . . . Corruption Blocked . | . . . . . . . . Effects 49 | . . . . . . 48 1 Message Errors 15 | . . . . . . 14 1 Matter Fused 11 | . . . . . . 11 . Heat Flow Errors 5 | . . . . . . 5 . Energy Discharges 5 | . . . . . . 5 . Parts Rejected 1 | . . . . . . 1 . Data Loss (minor) 10 | . . . . . . 10 . Data Loss (major) 1 | . . . . . . 1 . Misfires 1 | . . . . . . 1 . Overload Shots . | . . . . . . . . Overflow Damage 462 | . . . . . . 462 . Projectiles . | . . . . . . . . Explosions . | . . . . . . . . Melee 462 | . . . . . . 462 . Knockbacks 2 | . . . . . . 2 . Impact 2 | . . . . . . 2 . Kinetic . | . . . . . . . . Secondary . | . . . . . . . . Self-Inflicted Damage . | . . . . . . . . Shots . | . . . . . . . . Rammed . | . . . . . . . . Targets Rammed . | . . . . . . . . Kicked . | . . . . . . . . Crushed . | . . . . . . . . Highest Temperature 269 | . 147 36 . . 3 269 . Average Temperature 74 | . 70 13 . . 3 106 . Received Heat Transfer 1140 | . 201 171 . 9 459 282 18 Siege Activations . | . . . . . . . . Robots Corrupted . | . . . . . . . . Combat Hostiles . | . . . . . . . . Parts Fried . | . . . . . . . . Impact Corruptions 2 | . . . . . . 2 . Robots Melted . | . . . . . . . . Combat Hostiles . | . . . . . . . . Parts Melted 4 | . 1 . . . . 3 . Heat Transferred 375 | . 175 . . . . 200 . Parts Sabotaged . | . . . . . . . . Parts Stolen . | . . . . . . . . Parts Stripped . | . . . . . . . . Power Chain Reactions . | . . . . . . . . Missiles Intercepted . | . . . . . . . . Alert | -11 -10 -10 -10 -9 -8 -7 -6 ------- Run | Jun Mat Min Exi Min Mat Fac Fac Peak Influence 218 | . 163 100 . 81 218 183 65 Initial 65 | . . . . . 23 13 65 Average 54 | . 47 52 . 61 66 59 39 Maximum Alert Level 1 | . . . . . 1 . . Low Security (%) 99 | 100 100 100 . 100 99 100 100 Level 1 . | . . . . . . . . Level 2 . | . . . . . . . . Level 3 . | . . . . . . . . Level 4 . | . . . . . . . . Level 5 . | . . . . . . . . High Security . | . . . . . . . . Max Security . | . . . . . . . . Squads Dispatched 16 | . 1 . . . 3 8 4 Investigation 6 | . . . . . 2 3 1 Extermination 4 | . . . . . . 4 . Reinforcement 6 | . 1 . . . 1 1 3 Assault . | . . . . . . . . Garrison . | . . . . . . . . Intercept . | . . . . . . . . Searches Triggered . | . . . . . . . . Construction Impeded . | . . . . . . . . Haulers Reinforced . | . . . . . . . . Active Scanning Responses . | . . . . . . . . Cargo Convoy Interrupts . | . . . . . . . . Stealth | -11 -10 -10 -10 -9 -8 -7 -6 --------- Run | Jun Mat Min Exi Min Mat Fac Fac Distress Signals 1 | . . . . . 1 . . Communications Jammed . | . . . . . . . . Distress Signals . | . . . . . . . . Times Spotted 69 | . 9 7 . 5 15 27 6 Peak Tracking Total 5 | . 2 2 . 3 3 5 5 Tactical Retreats 3 | . . . . . 1 1 1 Traps | -11 -10 -10 -10 -9 -8 -7 -6 ------- Run | Jun Mat Min Exi Min Mat Fac Fac Traps Triggered 7 | . 1 . . . 1 4 1 Indirectly . | . . . . . . . . Trap Hack Attempts . | . . . . . . . . Triggered . | . . . . . . . . Disarmed . | . . . . . . . . Reprogrammed . | . . . . . . . . Reused . | . . . . . . . . Traps Extracted . | . . . . . . . . Installed . | . . . . . . . . Triggered . | . . . . . . . . Most Traps Carried 3 | . . 3 2 1 1 . . Machines | -11 -10 -10 -10 -9 -8 -7 -6 ---------- Run | Jun Mat Min Exi Min Mat Fac Fac Machines Disabled 2 | . . 1 . . 1 . . Max in Single Turn 1 | . . . . . 1 . . Garrison Access 2 | . . . . . 1 1 . Machines Repaired . | . . . . . . . . Machines Sabotaged . | . . . . . . . . Overloaded Fab Kills . | . . . . . . . . Hacking | -11 -10 -10 -10 -9 -8 -7 -6 --------- Run | Jun Mat Min Exi Min Mat Fac Fac Machines Accessed 21 | . 4 . 2 . 3 9 3 Terminals 10 | . 4 . . . 1 3 2 Fabricators 2 | . . . . . . 2 . Repair Stations 2 | . . . . . . 1 1 Recycling Units 1 | . . . . . . 1 . Scanalyzers 1 | . . . . . 1 . . Garrison Access 3 | . . . . . 1 2 . Total Hacks 50 | . 10 . 2 . 11 22 5 Successful 23 | . 3 . 2 . 9 9 . Failed 27 | . 7 . . . 2 13 5 Catastrophic 4 | . 2 . . . . 1 1 Database Lockouts . | . . . . . . . . Manual 18 | . 10 . 1 . 1 2 4 Terminals 25 | . 10 . . . 4 7 4 Fabricators 6 | . . . . . . 6 . Repair Stations 3 | . . . . . . 2 1 Recycling Units 2 | . . . . . . 2 . Scanalyzers 6 | . . . . . 6 . . Garrison Access 6 | . . . . . 1 5 . Terminal Hacks 10 | . 3 . 2 . 3 2 . Record 1 | . . . 1 . . . . Robot Analysis 3 | . 3 . . . . . . Branch Access Points 1 | . . . . . . 1 . Unreport Threat 1 | . . . . . . 1 . Locate Traps 1 | . . . . . 1 . . Security Status 1 | . . . . . 1 . . Recall Investigation 1 | . . . . . 1 . . EX-Prototype ID Bank 1 | . . . 1 . . . . Fabricator Hacks 4 | . . . . . . 4 . Load Schematic 2 | . . . . . . 2 . Build 2 | . . . . . . 2 . Repair Station Hacks 2 | . . . . . . 2 . Scan Component 1 | . . . . . . 1 . Repair 1 | . . . . . . 1 . Recycling Unit Hacks . | . . . . . . . . Scanalyzer 5 | . . . . . 5 . . Insert Component 2 | . . . . . 2 . . Analyze 3 | . . . . . 3 . . Garrison Access Hacks 2 | . . . . . 1 1 . Seal Access 2 | . . . . . 1 1 . Unauthorized Hacks . | . . . . . . . . Terminals . | . . . . . . . . Fabricators . | . . . . . . . . Repair Stations . | . . . . . . . . Recycling Units . | . . . . . . . . Scanalyzers . | . . . . . . . . Garrison Access . | . . . . . . . . Data Cores Recovered . | . . . . . . . . Used . | . . . . . . . . Hacking Detections 17 | . 4 . . . 2 8 3 Full Trace Events 6 | . 1 . . . 1 3 1 Feedback Events . | . . . . . . . . Feedback Blocked . | . . . . . . . . Robot Schematics Acquired . | . . . . . . . . Robots Built . | . . . . . . . . Authchips . | . . . . . . . . Time . | . . . . . . . . Total Robot Build Rating . | . . . . . . . . Part Schematics Acquired 1 | . . . . . 1 . . Parts Built 4 | . . . . . . 4 . Authchips . | . . . . . . . . Time 126 | . . . . . . 126 . Total Part Build Rating 16 | . . . . . . 16 . Parts Repaired 1 | . . . . . . 1 . Time 38 | . . . . . . 38 . Parts Recycled . | . . . . . . . . Recycled Matter . | . . . . . . . . Retrieved Matter . | . . . . . . . . Retrieved Components . | . . . . . . . . Parts Scanalyzed 2 | . . . . . 2 . . Part Schematics Acquired 1 | . . . . . 1 . . Parts Damaged . | . . . . . . . . Bothacking | -11 -10 -10 -10 -9 -8 -7 -6 ------------ Run | Jun Mat Min Exi Min Mat Fac Fac Used RIF Installer . | . . . . . . . . Robots Hacked . | . . . . . . . . Non-combat . | . . . . . . . . Combat . | . . . . . . . . Robot Hacks Applied . | . . . . . . . . Relay Couplers Released . | . . . . . . . . Fabnet Peak Effective % . | . . . . . . . . Robots Rewired . | . . . . . . . . Allies Hacked . | . . . . . . . . Hacks Repelled . | . . . . . . . . Allies | -11 -10 -10 -10 -9 -8 -7 -6 -------- Run | Jun Mat Min Exi Min Mat Fac Fac Total Allies 9 | . . 6 . . . 3 . Largest Group 6 | . . 6 5 3 2 3 . Highest-Rated Group 116 | . . 116 85 40 24 93 . Highest-Rated Ally 31 | . . 31 31 16 16 31 . Total Orders . | . . . . . . . . Ally Attacks 65 | . . 6 . 11 12 36 . Total Damage 863 | . . 76 . 117 97 573 . Kills 7 | . . 2 . 2 . 3 . Allies Corrupted . | . . . . . . . . Allies Melted . | . . . . . . . . Intel | -11 -10 -10 -10 -9 -8 -7 -6 ------- Run | Jun Mat Min Exi Min Mat Fac Fac Robot Analysis Total 2 | . 2 . . . . . . Derelict Logs Recovered 3 | . . 3 . . . . . Drone Launches . | . . . . . . . . Drone Recoveries . | . . . . . . . . Exploration | -11 -10 -10 -10 -9 -8 -7 -6 ------------- Run | Jun Mat Min Exi Min Mat Fac Fac Turns Passed 6676 | 30 525 1255 736 89 739 2607 695 Spaces Moved 3901 | 37 344 706 477 62 393 1588 294 Core 177 | 37 139 . 1 . . . . Treads 1079 | . 205 706 168 . . . . Legs 2313 | . . . 308 62 231 1418 294 Wheels . | . . . . . . . . Hover 332 | . . . . . 162 170 . Flight . | . . . . . . . . Fastest Speed 50 | 50 50 160 120 120 108 108 122 Average Speed 133 | 51 115 160 134 120 118 132 132 Slowest Speed 300 | 100 160 160 300 120 190 137 134 Overloaded Moves . | . . . . . . . . Propulsion Burnouts . | . . . . . . . . Robots Hopped . | . . . . . . . . Cave-ins Triggered . | . . . . . . . . Exploration Rate (%) 44 | 3 60 99 90 20 39 33 9 Regions Visited 7 Branch Regions 3 Pre-discovered Areas 1 | . . . 1 . . . . Known Exits Taken 2 | . . . . . 1 1 . Unknown Exits Taken 5 | 1 1 1 1 1 . . . Scrap Searched 1 | . . 1 . . . . . Spaces Dug 5 | . . . . . . . 5 Terrain Destroyed 5 | . . . . . . . 5 Melee 5 | . . . . . . . 5 Projectile . | . . . . . . . . AOE . | . . . . . . . . Terrain Rammed . | . . . . . . . . Walls Destroyed . | . . . . . . . . Machines Disabled . | . . . . . . . . Actions | -11 -10 -10 -10 -9 -8 -7 -6 --------- Run | Jun Mat Min Exi Min Mat Fac Fac Total 5109 | 47 424 806 520 74 593 2047 598 Wait 859 | . 40 74 . 12 116 335 282 Move 3894 | 36 343 705 476 61 392 1587 294 Hop . | . . . . . . . . Pick Up 68 | 6 7 7 7 . 15 20 6 Fast Attach 17 | 2 . 1 . . 6 8 . Attach 32 | 2 6 . 2 . 7 10 5 Detach 3 | 1 1 . . . . 1 . Swap 21 | . 2 . 2 . 7 9 1 Drop 43 | . 1 5 6 . 13 14 4 Fire 105 | . 24 14 27 1 37 2 . Melee 67 | . . . . . . 61 6 Ram . | . . . . . . . . Kick . | . . . . . . . . Crush . | . . . . . . . . Escape Stasis . | . . . . . . . . Rewire . | . . . . . . . . Trap . | . . . . . . . . Miscellaneous . | . . . . . . . . Route ------- -11/Junkyard -10/Materials (discovered 3 exits: [*Mat] / [*Min x2]) -10/Mines (discovered 3 exits: [*Mat x2] / *Exi) -10/Exiles -9/Mines (discovered 2 exits: *Mat x2) -8/Materials -7/Factory (discovered 3 exits: *Fac / *Low x2) -6/Factory History --------- Turn | Location | Event 17 | -11/Junkyard | Discovered new exit (range 15) 31 | -11/Junkyard | Entered Materials 58 | -10/Materials | Discovered new exit (range 13) 313 | -10/Materials | Discovered new exit (range 7) 317 | -10/Materials | Build established: Mutant 520 | -10/Materials | Discovered new exit (range 10) 556 | -10/Materials | Entered Mines 600 | -10/Mines | Learned Materials emergency access door positions 960 | -10/Mines | Core integrity fell below 50% 1068 | -10/Mines | Assisted by bots powering up and referring to "LRC-V3" 1169 | -10/Mines | Found a hidden stash of uninstalled traps 1169 | -10/Mines | Discovered new exit (range 16) 1194 | -10/Mines | Received a Mining Laser from a helpful Derelict 1276 | -10/Mines | Discovered new exit (range 5) 1308 | -10/Mines | Learned Materials terminal intel 1801 | -10/Mines | Deemed a non-threat by the Exiles lab entrance 1801 | -10/Mines | Discovered new exit (range 5) 1811 | -10/Mines | Entered Exiles 1811 | -10/Exiles | Found Exiles lab destroyed 1811 | -10/Exiles | Accompanied by 5 allies 1841 | -10/Exiles | Led the pair of lost Derelicts to a safe place 1975 | -10/Exiles | Opened EX-Vault 2004 | -10/Exiles | Found Prototype Slashing Weapon 2008 | -10/Exiles | Identified Longsword +1 2402 | -10/Exiles | Build established: Scavenger-Mutant 2498 | -10/Exiles | Learned location of Zion (-7) 2533 | -10/Exiles | Discovered new exit (range 14) 2547 | -10/Exiles | Entered Mines 2547 | -9/Mines | Accompanied by 3 allies 2584 | -9/Mines | Discovered new exit (range 16) 2592 | -9/Mines | Discovered new exit (range 6) 2626 | -9/Mines | Assembled infested the area 2631 | -9/Mines | Assisted by a Guerilla fighting off Assembled 2636 | -9/Mines | Entered Materials 2636 | -8/Materials | Accompanied by 2 allies 2636 | -8/Materials | Evolved 4 slots: Propulsion x2, Utility x2 2638 | -8/Materials | Loaded intel: 12 terminal locations 3105 | -8/Materials | Lost 6 parts (1p3n2u) 3309 | -8/Materials | Discovered new exit (range 15) 3357 | -8/Materials | Build established: Mutant 3374 | -8/Materials | Identified exit to Factory 3375 | -8/Materials | Entered Factory 3375 | -7/Factory | Evolved 2 slots: Propulsion x1, Utility x1 3382 | -7/Factory | Discovered new exit (range 9) 3402 | -7/Factory | Identified exit to Lower Caves 3628 | -7/Factory | Fabricated Mak. Leg? 3964 | -7/Factory | Build established: Derelict-Mutant 5225 | -7/Factory | Allied Derelicts emerged from ambush trap array 5305 | -7/Factory | Repaired Titanium Leg 5361 | -7/Factory | Build established: Mutant 5410 | -7/Factory | Fabricated Mak. Leg (x2) 5922 | -7/Factory | Discovered new exit (range 15) 5981 | -7/Factory | Identified exit to Factory 5982 | -7/Factory | Entered another Factory area 5982 | -6/Factory | Evolved 2 slots: Power x1, Utility x1 6640 | -6/Factory | Lost 3 parts (2n1u) 6677 | -6/Factory | Self-destructed Last Messages --------------- 06597_ Knocked back. 06601_ O-16 Technician: "IFF HANDSHAKE FAILED. SECURING TERMINAL." 06605_ ALERT: Hostiles spotted, dispatching reinforcements to Terminal F011. 06608_ Penetrated by Slug. 06609_ Mak. Leg destroyed. 06611_ Slug penetrates Wall. 06612_ U-05 Engineer builds a Wall. 06612_ Acquired 8 matter. 06617_ R3 /FGDR&E,Y4U3|MT5JVNNSYRA9 HPZDBO:Y 06633_ The unstable cave ceiling collapses. 06635_ K-01 Serf collects debris. 06654_ Mak. Leg destroyed. 06656_ The unstable cave ceiling collapses. 06667_ K-01 Serf cleans the Manufacturing Mainframe. 06668_ Slug penetrates Wall. 06669_ ALERT: Cargo convoy en route, clear transfer corridor. 06670_ K-01 Serf cleans the Manufacturing Mainframe. 06677_ Penetrated by Slug. 06677_ Carbon-fiber Leg destroyed. Map ----- +----------------------------------------------------+ | ?????????????????????????????????????????????????? | | ?????????????????????????????????????????????????? | | ?????????????????????????????????????????????????? | | ?????????????????????????????????????????????????? | | ?????????????????????????????????????????????????? | | ?????????????????????????????????????????????????? | | ?????????????????????????????????????????????????? | | ?????????????????????????????????????????????????? | | ?????????????????????????????????????????????????? | | ?????????????????????????????????????????????????? | | ?????????????????????????????????????????????????? | | ?????????????????????????????????????????????????? | | ?????????????????????????????????????????????????? | | ????????????????##???????????????????????????????? | | ?????????????? ??????????????????????????????? | | ?????????????? ?????????????????????????????? | | ?????????????# ?????????????????????????????? | | ?????????????# ????????????????????????????? | | ?????????????# ########????????????????????? | | ?????????????# #????????????????????? | | ?????????????# #????????????????????? | | ?????????????# #????????????????????? | | ?????????????+ Y +????????????????????? | | ?????????????# #????????????????????? | | ?????????????? #??????w?????????????? | | ????????????????????# @ #????????????????????? | | ????????????????????### k ##############?????????? | | ??????????????????????# # ! #?????????? | | ??????????????????????# + #?????????? | | ??????????????????????# # """" #?????????? | | ??????????????????????# # """" ??????????? | | ??????????????????????# # """" ""??????????? | | ??????????????????????# # """" ""#?????????? | | ??????????????????????# # ""#?????????? | | ???????????????#####??#h # """" G#?????????? | | ???????????????# ## # """" ""#?????????? | | ???????????????# # """" ""??????????? | | ???????????????? ?? # """" ""#?????????? | | ???????????????? ?? # #?????????? | | ???????????????? ?#####"###+#######???????????? | | ????????????????# #??## ##?? #?????????????????? | | ????????????????# ##########/##????????????????? | | ????????????????# # ! ! #????????????????? | | ????????????????# # #????????????????? | | ??????#########?# # """"""" #????????????????? | | ?????# #?# # """"""" #????????????????? | | ?????#"" #?# # """"""" #????????????????? | | ?????#"T #?# / """"""" #????????????????? | | ?????#"" * #?# # !#????????????????? | | ##???# #?# ###########??????????????????? | +----------------------------------------------------+ Best States ------------- Heat Dissipation 67 Energy Generation 24 Energy Capacity 290 Matter Stores 300 Matter Capacity 300 Sight Range 16 Robot Scan Range 19 Terrain Scan Density 10 Additional Mass Support 9 Melee Speed Boost 20 Evasion (%) 55 Melee Accuracy 6 Core Analysis 6 Recoil Reduction 2 Offensive Hacking 11 Item Schematics ----------------- Mak. Leg | -8/Materials | Scanalyzed Robot Schematics ------------------ None Fabricated ------------ Mak. Leg | x2 | -7/Factory Mak. Leg | x2 | -7/Factory Alien Tech Used ----------------- None Achievements -------------- None Challenges ------------ None Game ------ Seed MyomerMetafieldLoader Manual? 0 Play Time 00:34:11 Cumulative 82.7 hours Start 2023.10.22 @ 19:48:28 End 2023.10.22 @ 21:45:32 Sessions 3 Manual Loads 0 Difficulty Rogue Special Mode None Game No. 139 Rogue 136 Adventurer 3 Explorer 0 Win Type - Total 0 Types 0/0/0/0/0/0/0/0/0 Lore% 34 Gallery% 52 Achievement% 37 Wizard Run 0 Options --------- ASCII 0 Keyboard 0 Movement Mouse Keybinds 0 Fullscreen 2 Font 18/SmallcapsGlow Map View 76x50 Tactical HUD 1 Map Filters NONE Filters NONE Steam 1 RUN: 0886d949-955e-470d-a4a8-e9fa55540014